Workbook

Sheet Budżet na 18 okresów
B1: budżet firmy
G2: DATA ROZPOCZĘCIA | H2: 2011-01-01 | I2: DŁUGOŚĆ OKRESU (W DNIACH) | K2: 14 | L2: DATA ZAKOŃCZENIA | M2: =TEXT(T5,"rrrr-mm-dd") -> 2012-08-26
C5: =UPPER(TEXT(H2,"dd-mmm")) -> 01-STY | D5: =UPPER(TEXT(C5+InterwałDzienny,"dd-mmm")) -> 15-STY | E5: 29-STY | F5: 12-LUT | G5: 26-LUT | H5: 11-MAR | I5: 25-MAR | J5: 08-KWI | K5: 22-KWI | L5: 06-MAJ | M5: 20-MAJ | N5: 03-CZE | O5: 17-CZE | P5: 01-LIP | Q5: 15-LIP | R5: 29-LIP | S5: 12-SIE | T5: 26-SIE | U5: SUMA | V5: TREND
B6: PRZYCHÓD NETTO | C6: =Tabela_przychodu[[#Totals],[Tydzień 1]]-Tabela_wydatków[[#Totals],[Tydzień 1]] -> 1,750.00 zł | D6: =Tabela_przychodu[[#Totals],[Tydzień 2]]-Tabela_wydatków[[#Totals],[Tydzień 2]] -> 2,236.00 zł | E6: =Tabela_przychodu[[#Totals],[Tydzień 3]]-Tabela_wydatków[[#Totals],[Tydzień 3]] -> 1,442.00 zł | F6: =Tabela_przychodu[[#Totals],[Tydzień 4]]-Tabela_wydatków[[#Totals],[Tydzień 4]] -> 2,253.00 zł | G6: =Tabela_przychodu[[#Totals],[Tydzień 5]]-Tabela_wydatków[[#Totals],[Tydzień 5]] -> 1,533.00 zł | H6: =Tabela_przychodu[[#Totals],[Tydzień 6]]-Tabela_wydatków[[#Totals],[Tydzień 6]] -> 1,086.00 zł | I6: =Tabela_przychodu[[#Totals],[Tydzień 7]]-Tabela_wydatków[[#Totals],[Tydzień 7]] -> 1,594.00 zł | J6: =Tabela_przychodu[[#Totals],[Tydzień 8]]-Tabela_wydatków[[#Totals],[Tydzień 8]] -> 0 | K6: =Tabela_przychodu[[#Totals],[Tydzień 9]]-Tabela_wydatków[[#Totals],[Tydzień 9]] -> 0 | L6: =Tabela_przychodu[[#Totals],[Tydzień 10]]-Tabela_wydatków[[#Totals],[Tydzień 10]] -> 0 | M6: =Tabela_przychodu[[#Totals],[Tydzień 11]]-Tabela_wydatków[[#Totals],[Tydzień 11]] -> 0 | N6: =Tabela_przychodu[[#Totals],[Tydzień 12]]-Tabela_wydatków[[#Totals],[Tydzień 12]] -> 0 | O6: =Tabela_przychodu[[#Totals],[Tydzień 13]]-Tabela_wydatków[[#Totals],[Tydzień 13]] -> 0 | P6: =Tabela_przychodu[[#Totals],[Tydzień 14]]-Tabela_wydatków[[#Totals],[Tydzień 14]] -> 0 | Q6: =Tabela_przychodu[[#Totals],[Tydzień 15]]-Tabela_wydatków[[#Totals],[Tydzień 15]] -> 0 | R6: =Tabela_przychodu[[#Totals],[Tydzień 16]]-Tabela_wydatków[[#Totals],[Tydzień 16]] -> 0 | S6: =Tabela_przychodu[[#Totals],[Tydzień 17]]-Tabela_wydatków[[#Totals],[Tydzień 17]] -> 0 | T6: =Tabela_przychodu[[#Totals],[Tydzień 18]]-Tabela_wydatków[[#Totals],[Tydzień 18]] -> 0 | U6: =Tabela_przychodu[[#Totals],[Suma]]-Tabela_wydatków[[#Totals],[Suma]] -> 11,894.00 zł
A8: przychód
B9: POZYCJA PRZYCHODU 1 | C9: 3,000.00 zł | D9: 3,500.00 zł | E9: 2,978.00 zł | F9: 3,384.00 zł | G9: 2,858.00 zł | H9: 2,809.00 zł | I9: 3,220.00 zł | U9: =SUM(Tabela_przychodu[[#This Row],[Tydzień 1]:[Tydzień 18]]) -> 21,749.00 zł
B10: POZYCJA PRZYCHODU 2 | C10: 1150.00 | D10: 1200.00 | E10: 1144.00 | F10: 1400.00 | G10: 1358.00 | H10: 1154.00 | I10: 1245.00 | U10: =SUM(Tabela_przychodu[[#This Row],[Tydzień 1]:[Tydzień 18]]) -> 8651.00
B11: POZYCJA PRZYCHODU 3 | C11: 300.00 | D11: 350.00 | E11: 392.00 | F11: 326.00 | G11: 381.00 | H11: 364.00 | I11: 315.00 | U11: =SUM(Tabela_przychodu[[#This Row],[Tydzień 1]:[Tydzień 18]]) -> 2428.00
B12: ŁĄCZNY PRZYCHÓD | C12: =SUBTOTAL(109,Tabela_przychodu[Tydzień 1]) -> 4,450.00 zł | D12: =SUBTOTAL(109,Tabela_przychodu[Tydzień 2]) -> 5,050.00 zł | E12: =SUBTOTAL(109,Tabela_przychodu[Tydzień 3]) -> 4,514.00 zł | F12: =SUBTOTAL(109,Tabela_przychodu[Tydzień 4]) -> 5,110.00 zł | G12: =SUBTOTAL(109,Tabela_przychodu[Tydzień 5]) -> 4,597.00 zł | H12: =SUBTOTAL(109,Tabela_przychodu[Tydzień 6]) -> 4,327.00 zł | I12: =SUBTOTAL(109,Tabela_przychodu[Tydzień 7]) -> 4,780.00 zł | J12: =SUBTOTAL(109,Tabela_przychodu[Tydzień 8]) -> 0 | K12: =SUBTOTAL(109,Tabela_przychodu[Tydzień 9]) -> 0 | L12: =SUBTOTAL(109,Tabela_przychodu[Tydzień 10]) -> 0 | M12: =SUBTOTAL(109,Tabela_przychodu[Tydzień 11]) -> 0 | N12: =SUBTOTAL(109,Tabela_przychodu[Tydzień 12]) -> 0 | O12: =SUBTOTAL(109,Tabela_przychodu[Tydzień 13]) -> 0 | P12: =SUBTOTAL(109,Tabela_przychodu[Tydzień 14]) -> 0 | Q12: =SUBTOTAL(109,Tabela_przychodu[Tydzień 15]) -> 0 | R12: =SUBTOTAL(109,Tabela_przychodu[Tydzień 16]) -> 0 | S12: =SUBTOTAL(109,Tabela_przychodu[Tydzień 17]) -> 0 | T12: =SUBTOTAL(109,Tabela_przychodu[Tydzień 18]) -> 0 | U12: =SUBTOTAL(109,Tabela_przychodu[Suma]) -> 32,828.00 zł
A13: wydatki
A14: wydatków
B15: WYNAGRODZENIA | C15: 1,500.00 zł | D15: 1,577.00 zł | E15: 1,823.00 zł | F15: 1,529.00 zł | G15: 1,759.00 zł | H15: 1,947.00 zł | I15: 1,875.00 zł | U15: =SUM(Tabela_wydatków[[#This Row],[Tydzień 1]:[Tydzień 18]]) -> 12,010.00 zł
B16: CZYNSZ | C16: 1000.00 | D16: 1000.00 | E16: 1000.00 | F16: 1000.00 | G16: 1000.00 | H16: 1000.00 | I16: 1000.00 | U16: =SUM(Tabela_wydatków[[#This Row],[Tydzień 1]:[Tydzień 18]]) -> 7000.00
B17: ENERGIA ELEKTRYCZNA | C17: 40.00 | D17: 43.00 | E17: 40.00 | F17: 42.00 | G17: 45.00 | H17: 40.00 | I17: 42.00 | U17: =SUM(Tabela_wydatków[[#This Row],[Tydzień 1]:[Tydzień 18]]) -> 292.00
B18: TELEFON | C18: 12.00 | D18: 11.00 | E18: 13.00 | F18: 14.00 | G18: 11.00 | H18: 15.00 | I18: 15.00 | U18: =SUM(Tabela_wydatków[[#This Row],[Tydzień 1]:[Tydzień 18]]) -> 91.00
B19: INTERNET | C19: 15.00 | D19: 15.00 | E19: 15.00 | F19: 15.00 | G19: 15.00 | H19: 15.00 | I19: 15.00 | U19: =SUM(Tabela_wydatków[[#This Row],[Tydzień 1]:[Tydzień 18]]) -> 105.00
B20: WODA | C20: 11.00 | D20: 10.00 | E20: 13.00 | F20: 10.00 | G20: 13.00 | H20: 10.00 | I20: 12.00 | U20: =SUM(Tabela_wydatków[[#This Row],[Tydzień 1]:[Tydzień 18]]) -> 79.00
B21: GAZ | C21: 23.00 | D21: 27.00 | E21: 26.00 | F21: 27.00 | G21: 22.00 | H21: 29.00 | I21: 21.00 | U21: =SUM(Tabela_wydatków[[#This Row],[Tydzień 1]:[Tydzień 18]]) -> 175.00
B22: WYWÓZ ŚMIECI | C22: 4.00 | D22: 4.00 | E22: 4.00 | F22: 4.00 | G22: 4.00 | H22: 4.00 | I22: 4.00 | U22: =SUM(Tabela_wydatków[[#This Row],[Tydzień 1]:[Tydzień 18]]) -> 28.00
B23: TELEWIZJA KABLOWA | C23: 10.00 | D23: 10.00 | E23: 10.00 | F23: 10.00 | G23: 10.00 | H23: 10.00 | I23: 10.00 | U23: =SUM(Tabela_wydatków[[#This Row],[Tydzień 1]:[Tydzień 18]]) -> 70.00
B24: MATERIAŁY BIUROWE | C24: 25.00 | D24: 57.00 | E24: 68.00 | F24: 146.00 | G24: 125.00 | H24: 111.00 | I24: 132.00 | U24: =SUM(Tabela_wydatków[[#This Row],[Tydzień 1]:[Tydzień 18]]) -> 664.00
B25: UBEZPIECZENIE | C25: 60.00 | D25: 60.00 | E25: 60.00 | F25: 60.00 | G25: 60.00 | H25: 60.00 | I25: 60.00 | U25: =SUM(Tabela_wydatków[[#This Row],[Tydzień 1]:[Tydzień 18]]) -> 420.00
B26: WYDATKI RAZEM | C26: =SUBTOTAL(109,Tabela_wydatków[Tydzień 1]) -> 2,700.00 zł | D26: =SUBTOTAL(109,Tabela_wydatków[Tydzień 2]) -> 2,814.00 zł | E26: =SUBTOTAL(109,Tabela_wydatków[Tydzień 3]) -> 3,072.00 zł | F26: =SUBTOTAL(109,Tabela_wydatków[Tydzień 4]) -> 2,857.00 zł | G26: =SUBTOTAL(109,Tabela_wydatków[Tydzień 5]) -> 3,064.00 zł | H26: =SUBTOTAL(109,Tabela_wydatków[Tydzień 6]) -> 3,241.00 zł | I26: =SUBTOTAL(109,Tabela_wydatków[Tydzień 7]) -> 3,186.00 zł | J26: =SUBTOTAL(109,Tabela_wydatków[Tydzień 8]) -> 0 | K26: =SUBTOTAL(109,Tabela_wydatków[Tydzień 9]) -> 0 | L26: =SUBTOTAL(109,Tabela_wydatków[Tydzień 10]) -> 0 | M26: =SUBTOTAL(109,Tabela_wydatków[Tydzień 11]) -> 0 | N26: =SUBTOTAL(109,Tabela_wydatków[Tydzień 12]) -> 0 | O26: =SUBTOTAL(109,Tabela_wydatków[Tydzień 13]) -> 0 | P26: =SUBTOTAL(109,Tabela_wydatków[Tydzień 14]) -> 0 | Q26: =SUBTOTAL(109,Tabela_wydatków[Tydzień 15]) -> 0 | R26: =SUBTOTAL(109,Tabela_wydatków[Tydzień 16]) -> 0 | S26: =SUBTOTAL(109,Tabela_wydatków[Tydzień 17]) -> 0 | T26: =SUBTOTAL(109,Tabela_wydatków[Tydzień 18]) -> 0 | U26: =SUBTOTAL(109,Tabela_wydatków[Suma]) -> 20,934.00 zł
